[Event "British Rapidplay Championship 2023"]
[Site "Mercure Bradford, Bankfield Hotel"]
[Date "2023.04.15"]
[Round "6.18"]
[White "Quilter, Thomas A"]
[Black "Bak, Andrew"]
[Result "1-0"]
[TimeControl "15 minutes plus 10 seconds per move"]
[WhiteElo "2134"]
[BlackElo "1959"]

1. e4 {[%clk 00:15:15]} {[%emt 00:00:04]} c5 {[%clk 00:15:18]} {[%emt
00:00:03]} 2. Nf3 {[%clk 00:15:16]} {[%emt 00:00:09]} Nc6 {[%clk 00:15:26]}
{[%emt 00:00:02]} 3. c3 {[%clk 00:15:15]} {[%emt 00:00:11]} e6 {[%clk
00:15:30]} {[%emt 00:00:06]} 4. Bd3 {[%clk 00:15:15]} {[%emt 00:00:11]} d5
{[%clk 00:15:33]} {[%emt 00:00:07]} 5. e5 {[%clk 00:14:46]} {[%emt 00:00:39]}
f6 {[%clk 00:15:21]} {[%emt 00:00:21]} 6. Qe2 {[%clk 00:14:12]} {[%emt
00:00:44]} fxe5 {[%clk 00:14:17]} {[%emt 00:01:15]} 7. Nxe5 {[%clk 00:14:15]}
{[%emt 00:00:07]} Nxe5 {[%clk 00:14:11]} {[%emt 00:00:16]} 8. Qxe5 {[%clk
00:14:22]} {[%emt 00:00:02]} Nf6 {[%clk 00:13:48]} {[%emt 00:00:33]} 9. Bb5+
{[%clk 00:14:01]} {[%emt 00:00:31]} Kf7 {[%clk 00:13:55]} {[%emt 00:00:02]} 10.
d4 {[%clk 00:12:43]} {[%emt 00:01:29]} Bd6 {[%clk 00:13:31]} {[%emt 00:00:34]}
11. Qe2 {[%clk 00:12:48]} {[%emt 00:00:05]} cxd4 {[%clk 00:12:29]} {[%emt
00:01:12]} 12. cxd4 {[%clk 00:12:33]} {[%emt 00:00:25]} Bd7 {[%clk 00:12:19]}
{[%emt 00:00:20]} 13. Bd3 {[%clk 00:11:48]} {[%emt 00:00:55]} Rf8 {[%clk
00:10:35]} {[%emt 00:01:54]} 14. Nd2 {[%clk 00:10:43]} {[%emt 00:01:16]} Kg8
{[%clk 00:10:18]} {[%emt 00:00:26]} 15. O-O {[%clk 00:10:21]} {[%emt 00:00:31]}
Qc7 {[%clk 00:10:20]} {[%emt 00:00:09]} 16. Nf3 {[%clk 00:10:12]} {[%emt
00:00:20]} Kh8 {[%clk 00:07:29]} {[%emt 00:03:01]} 17. Ne5 {[%clk 00:08:33]}
{[%emt 00:01:49]} Bxe5 {[%clk 00:05:24]} {[%emt 00:02:15]} 18. dxe5 {[%clk
00:08:41]} {[%emt 00:00:02]} Ne4 {[%clk 00:05:32]} {[%emt 00:00:02]} 19. f4
{[%clk 00:06:03]} {[%emt 00:02:48]} Bc6 {[%clk 00:04:26]} {[%emt 00:01:17]} 20.
Be3 {[%clk 00:05:52]} {[%emt 00:00:21]} a6 {[%clk 00:03:26]} {[%emt 00:01:10]}
21. a4 {[%clk 00:05:31]} {[%emt 00:00:30]} Qd7 {[%clk 00:02:09]} {[%emt
00:01:27]} 22. Bc2 {[%clk 00:03:57]} {[%emt 00:01:45]} d4 {[%clk 00:01:41]}
{[%emt 00:00:38]} 23. Rfd1 {[%clk 00:03:44]} {[%emt 00:00:22]} Qe7 {[%clk
00:00:48]} {[%emt 00:01:03]} 24. Rxd4 {[%clk 00:02:32]} {[%emt 00:01:22]} Nc5
{[%clk 00:00:56]} {[%emt 00:00:02]} 25. Rd6 {[%clk 00:02:00]} {[%emt 00:00:42]}
Ne4 {[%clk 00:00:29]} {[%emt 00:00:37]} 26. Rxc6 {[%clk 00:01:54]} {[%emt
00:00:17]} bxc6 {[%clk 00:00:38]} {[%emt 00:00:01]} 27. Bxe4 {[%clk 00:02:01]}
{[%emt 00:00:03]} Rab8 {[%clk 00:00:42]} {[%emt 00:00:05]} 28. Rc1 {[%clk
00:01:37]} {[%emt 00:00:34]} Qb4 {[%clk 00:00:41]} {[%emt 00:00:10]} 29. Bc5
{[%clk 00:01:25]} {[%emt 00:00:22]} 1-0

[Event "British Rapidplay Championship 2023"]
[Site "Mercure Bradford, Bankfield Hotel"]
[Date "2023.04.15"]
[Round "6.19"]
[White "Smith, Andrew P"]
[Black "Vijayakumar, Rishi"]
[Result "1-0"]
[TimeControl "15 minutes plus 10 seconds per move"]
[WhiteElo "2125"]
[BlackElo "1770"]

1. e4 {[%clk 00:14:52]} {[%emt 00:00:27]} c6 {[%clk 00:15:18]} {[%emt
00:00:03]} 2. d4 {[%clk 00:14:54]} {[%emt 00:00:08]} d5 {[%clk 00:15:28]}
{[%emt 00:00:01]} 3. e5 {[%clk 00:14:56]} {[%emt 00:00:08]} Bf5 {[%clk
00:15:36]} {[%emt 00:00:01]} 4. c4 {[%clk 00:14:50]} {[%emt 00:00:15]} e6
{[%clk 00:15:45]} {[%emt 00:00:02]} 5. Nc3 {[%clk 00:14:52]} {[%emt 00:00:07]}
Bb4 {[%clk 00:15:54]} {[%emt 00:00:02]} 6. a3 {[%clk 00:14:52]} {[%emt
00:00:10]} Bxc3+ {[%clk 00:16:02]} {[%emt 00:00:02]} 7. bxc3 {[%clk 00:14:54]}
{[%emt 00:00:08]} Ne7 {[%clk 00:16:11]} {[%emt 00:00:01]} 8. c5 {[%clk
00:14:54]} {[%emt 00:00:10]} b6 {[%clk 00:16:20]} {[%emt 00:00:01]} 9. cxb6
{[%clk 00:14:55]} {[%emt 00:00:09]} axb6 {[%clk 00:16:26]} {[%emt 00:00:03]} 10.
Ne2 {[%clk 00:14:56]} {[%emt 00:00:09]} b5 {[%clk 00:16:32]} {[%emt 00:00:05]}
11. Ng3 {[%clk 00:14:56]} {[%emt 00:00:08]} Nd7 {[%clk 00:16:40]} {[%emt
00:00:04]} 12. Nxf5 {[%clk 00:14:33]} {[%emt 00:00:33]} Nxf5 {[%clk 00:16:40]}
{[%emt 00:00:10]} 13. Bd3 {[%clk 00:14:25]} {[%emt 00:00:18]} Qa5 {[%clk
00:16:21]} {[%emt 00:00:28]} 14. Bd2 {[%clk 00:12:26]} {[%emt 00:02:07]} Nb6
{[%clk 00:16:18]} {[%emt 00:00:16]} 15. Qg4 {[%clk 00:06:57]} {[%emt 00:05:37]}
h5 {[%clk 00:11:52]} {[%emt 00:04:38]} 16. Qg5 {[%clk 00:06:17]} {[%emt
00:00:49]} g6 {[%clk 00:11:23]} {[%emt 00:00:40]} 17. Bxf5 {[%clk 00:04:30]}
{[%emt 00:01:57]} gxf5 {[%clk 00:07:36]} {[%emt 00:03:57]} 18. Qg7 {[%clk
00:04:06]} {[%emt 00:00:34]} Rf8 {[%clk 00:06:23]} {[%emt 00:01:24]} 19. c4
{[%clk 00:03:28]} {[%emt 00:00:47]} Qa4 {[%clk 00:06:18]} {[%emt 00:00:15]} 20.
O-O {[%clk 00:02:42]} {[%emt 00:00:56]} dxc4 {[%clk 00:04:26]} {[%emt
00:02:02]} 21. Bb4 {[%clk 00:02:34]} {[%emt 00:00:19]} Nd7 {[%clk 00:04:10]}
{[%emt 00:00:26]} 22. Qg5 {[%clk 00:01:47]} {[%emt 00:00:56]} f6 {[%clk
00:03:27]} {[%emt 00:00:54]} 23. exf6 {[%clk 00:01:16]} {[%emt 00:00:40]} O-O-O
{[%clk 00:02:06]} {[%emt 00:01:31]} 24. Bxf8 {[%clk 00:01:06]} {[%emt
00:00:20]} Rxf8 {[%clk 00:02:15]} {[%emt 00:00:02]} 25. Qe3 {[%clk 00:01:04]}
{[%emt 00:00:11]} Rxf6 {[%clk 00:02:16]} {[%emt 00:00:09]} 26. Rfe1 {[%clk
00:01:11]} {[%emt 00:00:03]} f4 {[%clk 00:00:41]} {[%emt 00:01:45]} 27. Qe4
{[%clk 00:00:52]} {[%emt 00:00:28]} Kc7 {[%clk 00:00:40]} {[%emt 00:00:13]} 28.
Qh7 {[%clk 00:00:43]} {[%emt 00:00:18]} c3 {[%clk 00:00:35]} {[%emt 00:00:16]}
29. Qd3 {[%clk 00:00:34]} {[%emt 00:00:19]} Qb3 {[%clk 00:00:23]} {[%emt
00:00:22]} 30. Reb1 {[%clk 00:00:31]} {[%emt 00:00:13]} Qd5 {[%clk 00:00:23]}
{[%emt 00:00:10]} 31. Qxc3 {[%clk 00:00:36]} {[%emt 00:00:04]} Rg6 {[%clk
00:00:27]} {[%emt 00:00:06]} 32. f3 {[%clk 00:00:37]} {[%emt 00:00:09]} h4
{[%clk 00:00:34]} {[%emt 00:00:03]} 33. h3 {[%clk 00:00:44]} {[%emt 00:00:03]}
Nb6 {[%clk 00:00:23]} {[%emt 00:00:21]} 34. Re1 {[%clk 00:00:39]} {[%emt
00:00:15]} Nc4 {[%clk 00:00:29]} {[%emt 00:00:05]} 35. a4 {[%clk 00:00:36]}
{[%emt 00:00:13]} b4 {[%clk 00:00:22]} {[%emt 00:00:16]} 36. Qxb4 {[%clk
00:00:33]} {[%emt 00:00:13]} Qxd4+ {[%clk 00:00:19]} {[%emt 00:00:13]} 37. Kh1
{[%clk 00:00:37]} {[%emt 00:00:06]} c5 {[%clk 00:00:23]} {[%emt 00:00:07]} 38.
Qb1 {[%clk 00:00:30]} {[%emt 00:00:16]} Ne3 {[%clk 00:00:23]} {[%emt 00:00:10]}
39. Qxg6 {[%clk 00:00:35]} {[%emt 00:00:05]} Qb2 {[%clk 00:00:27]} {[%emt
00:00:06]} 40. Rab1 {[%clk 00:00:37]} {[%emt 00:00:08]} Qf2 {[%clk 00:00:35]}
{[%emt 00:00:04]} 41. a5 {[%clk 00:00:27]} {[%emt 00:00:20]} Nf5 {[%clk
00:00:43]} {[%emt 00:00:01]} 42. Qf7+ {[%clk 00:00:23]} {[%emt 00:00:14]} Kc6
{[%clk 00:00:40]} {[%emt 00:00:14]} 43. Qxe6+ {[%clk 00:00:30]} {[%emt
00:00:03]} Kc7 {[%clk 00:00:45]} {[%emt 00:00:05]} 44. Qxf5 {[%clk 00:00:34]}
{[%emt 00:00:06]} Qd4 {[%clk 00:00:45]} {[%emt 00:00:10]} 45. Qe5+ {[%clk
00:00:39]} {[%emt 00:00:05]} 1-0

[Event "British Rapidplay Championship 2023"]
[Site "Mercure Bradford, Bankfield Hotel"]
[Date "2023.04.15"]
[Round "6.20"]
[White "Zhao, George"]
[Black "Bak, Christopher"]
[Result "0-1"]
[TimeControl "15 minutes plus 10 seconds per move"]
[WhiteElo "1675"]
[BlackElo "2116"]

1. d4 {[%clk 00:15:17]} {[%emt 00:00:01]} Nf6 {[%clk 00:15:17]} {[%emt
00:00:02]} 2. Nf3 {[%clk 00:15:25]} {[%emt 00:00:03]} c5 {[%clk 00:15:25]}
{[%emt 00:00:02]} 3. g3 {[%clk 00:15:32]} {[%emt 00:00:04]} cxd4 {[%clk
00:15:32]} {[%emt 00:00:02]} 4. Nxd4 {[%clk 00:15:41]} {[%emt 00:00:01]} d5
{[%clk 00:15:30]} {[%emt 00:00:13]} 5. Bg2 {[%clk 00:15:49]} {[%emt 00:00:01]}
e5 {[%clk 00:15:37]} {[%emt 00:00:03]} 6. Nf3 {[%clk 00:15:57]} {[%emt
00:00:02]} Nc6 {[%clk 00:15:43]} {[%emt 00:00:04]} 7. O-O {[%clk 00:16:05]}
{[%emt 00:00:03]} Be7 {[%clk 00:15:12]} {[%emt 00:00:40]} 8. e3 {[%clk
00:15:54]} {[%emt 00:00:22]} O-O {[%clk 00:15:08]} {[%emt 00:00:13]} 9. c4
{[%clk 00:15:58]} {[%emt 00:00:06]} dxc4 {[%clk 00:14:33]} {[%emt 00:00:46]} 10.
Qe2 {[%clk 00:15:27]} {[%emt 00:00:41]} Qd5 {[%clk 00:12:44]} {[%emt 00:01:59]}
11. Rd1 {[%clk 00:14:15]} {[%emt 00:01:22]} Qc5 {[%clk 00:12:51]} {[%emt
00:00:02]} 12. h3 {[%clk 00:13:55]} {[%emt 00:00:30]} h6 {[%clk 00:12:37]}
{[%emt 00:00:24]} 13. Nfd2 {[%clk 00:13:34]} {[%emt 00:00:31]} Rd8 {[%clk
00:12:32]} {[%emt 00:00:14]} 14. Nc3 {[%clk 00:13:34]} {[%emt 00:00:11]} Be6
{[%clk 00:12:02]} {[%emt 00:00:40]} 15. Nde4 {[%clk 00:13:02]} {[%emt
00:00:43]} Nxe4 {[%clk 00:11:40]} {[%emt 00:00:31]} 16. Nxe4 {[%clk 00:13:01]}
{[%emt 00:00:11]} Qb6 {[%clk 00:11:29]} {[%emt 00:00:21]} 17. Bd2 {[%clk
00:12:32]} {[%emt 00:00:40]} Bb4 {[%clk 00:10:32]} {[%emt 00:01:06]} 18. Bxb4
{[%clk 00:12:30]} {[%emt 00:00:13]} Nxb4 {[%clk 00:10:38]} {[%emt 00:00:04]} 19.
Nc3 {[%clk 00:12:34]} {[%emt 00:00:06]} Nd3 {[%clk 00:10:37]} {[%emt 00:00:10]}
20. b3 {[%clk 00:12:12]} {[%emt 00:00:32]} Rac8 {[%clk 00:10:31]} {[%emt
00:00:15]} 21. bxc4 {[%clk 00:12:08]} {[%emt 00:00:15]} Bxc4 {[%clk 00:10:39]}
{[%emt 00:00:02]} 22. Rab1 {[%clk 00:12:09]} {[%emt 00:00:10]} Qa5 {[%clk
00:09:44]} {[%emt 00:01:05]} 23. Qc2 {[%clk 00:11:11]} {[%emt 00:01:08]} Ba6
{[%clk 00:09:24]} {[%emt 00:00:29]} 24. Rb3 {[%clk 00:11:00]} {[%emt 00:00:22]}
Nc5 {[%clk 00:08:04]} {[%emt 00:01:29]} 25. Rb2 {[%clk 00:10:26]} {[%emt
00:00:44]} Rxd1+ {[%clk 00:07:18]} {[%emt 00:00:57]} 26. Nxd1 {[%clk 00:10:25]}
{[%emt 00:00:09]} Qe1+ {[%clk 00:07:05]} {[%emt 00:00:24]} 27. Kh2 {[%clk
00:10:33]} {[%emt 00:00:02]} b6 {[%clk 00:07:05]} {[%emt 00:00:10]} 28. Be4
{[%clk 00:10:17]} {[%emt 00:00:26]} Nxe4 {[%clk 00:06:20]} {[%emt 00:00:54]} 29.
Qxe4 {[%clk 00:10:16]} {[%emt 00:00:12]} Qxd1 {[%clk 00:06:22]} {[%emt
00:00:08]} 30. Qf5 {[%clk 00:10:22]} {[%emt 00:00:03]} Bb7 {[%clk 00:06:17]}
{[%emt 00:00:16]} 31. e4 {[%clk 00:10:09]} {[%emt 00:00:23]} Rc1 {[%clk
00:06:02]} {[%emt 00:00:24]} 32. Qc8+ {[%clk 00:10:13]} {[%emt 00:00:06]} Bxc8
{[%clk 00:06:07]} {[%emt 00:00:05]} 33. Rxb6 {[%clk 00:10:20]} {[%emt
00:00:03]} Qh1# {[%clk 00:06:02]} {[%emt 00:00:03]} 0-1

[Event "British Rapidplay Championship 2023"]
[Site "Mercure Bradford, Bankfield Hotel"]
[Date "2023.04.15"]
[Round "6.21"]
[White "Larchikov, Maksym"]
[Black "Lloyd, Stephen M"]
[Result "1-0"]
[TimeControl "15 minutes plus 10 seconds per move"]
[WhiteElo "1871"]
[BlackElo "1742"]

1. d4 {[%clk 00:15:18]} {[%emt 00:00:02]} Nf6 {[%clk 00:15:16]} {[%emt
00:00:04]} 2. Nf3 {[%clk 00:15:25]} {[%emt 00:00:02]} g6 {[%clk 00:15:24]}
{[%emt 00:00:04]} 3. c4 {[%clk 00:15:33]} {[%emt 00:00:01]} Bg7 {[%clk
00:15:19]} {[%emt 00:00:15]} 4. Nc3 {[%clk 00:15:42]} {[%emt 00:00:01]} d6
{[%clk 00:15:22]} {[%emt 00:00:08]} 5. e4 {[%clk 00:15:50]} {[%emt 00:00:01]}
O-O {[%clk 00:15:27]} {[%emt 00:00:05]} 6. Be2 {[%clk 00:15:58]} {[%emt
00:00:01]} c5 {[%clk 00:15:28]} {[%emt 00:00:10]} 7. d5 {[%clk 00:16:04]}
{[%emt 00:00:04]} e6 {[%clk 00:15:19]} {[%emt 00:00:18]} 8. O-O {[%clk
00:15:58]} {[%emt 00:00:16]} exd5 {[%clk 00:14:42]} {[%emt 00:00:47]} 9. cxd5
{[%clk 00:16:06]} {[%emt 00:00:03]} Re8 {[%clk 00:14:34]} {[%emt 00:00:18]} 10.
Qc2 {[%clk 00:15:35]} {[%emt 00:00:40]} Nbd7 {[%clk 00:13:19]} {[%emt
00:01:27]} 11. Bf4 {[%clk 00:15:27]} {[%emt 00:00:17]} Qe7 {[%clk 00:11:32]}
{[%emt 00:01:57]} 12. Rfe1 {[%clk 00:14:07]} {[%emt 00:01:28]} Nh5 {[%clk
00:10:40]} {[%emt 00:01:03]} 13. Bg5 {[%clk 00:14:05]} {[%emt 00:00:12]} Qf8
{[%clk 00:10:26]} {[%emt 00:00:24]} 14. Nb5 {[%clk 00:13:44]} {[%emt 00:00:32]}
f6 {[%clk 00:07:47]} {[%emt 00:02:49]} 15. Bd2 {[%clk 00:13:10]} {[%emt
00:00:45]} Re7 {[%clk 00:06:36]} {[%emt 00:01:20]} 16. Nc7 {[%clk 00:12:47]}
{[%emt 00:00:33]} Rb8 {[%clk 00:06:44]} {[%emt 00:00:02]} 17. Ne6 {[%clk
00:12:54]} {[%emt 00:00:03]} Qf7 {[%clk 00:05:59]} {[%emt 00:00:55]} 18. g4
{[%clk 00:13:01]} {[%emt 00:00:02]} Ne5 {[%clk 00:05:51]} {[%emt 00:00:19]} 19.
Nxe5 {[%clk 00:13:03]} {[%emt 00:00:07]} fxe5 {[%clk 00:05:52]} {[%emt
00:00:09]} 20. gxh5 {[%clk 00:13:08]} {[%emt 00:00:06]} Bxe6 {[%clk 00:05:47]}
{[%emt 00:00:15]} 21. dxe6 {[%clk 00:13:11]} {[%emt 00:00:06]} Qf6 {[%clk
00:05:32]} {[%emt 00:00:25]} 22. h6 {[%clk 00:13:05]} {[%emt 00:00:16]} Bf8
{[%clk 00:05:04]} {[%emt 00:00:39]} 23. Qc3 {[%clk 00:12:50]} {[%emt 00:00:24]}
Kh8 {[%clk 00:04:57]} {[%emt 00:00:18]} 24. f4 {[%clk 00:11:29]} {[%emt
00:01:30]} Bxh6 {[%clk 00:03:55]} {[%emt 00:01:13]} 25. fxe5 {[%clk 00:11:25]}
{[%emt 00:00:14]} Qh4 {[%clk 00:02:52]} {[%emt 00:01:13]} 26. Bxh6 {[%clk
00:11:03]} {[%emt 00:00:32]} Qxh6 {[%clk 00:02:16]} {[%emt 00:00:46]} 27. exd6+
{[%clk 00:11:10]} {[%emt 00:00:03]} Rg7 {[%clk 00:02:21]} {[%emt 00:00:06]} 28.
Rf1 {[%clk 00:11:15]} {[%emt 00:00:04]} Qg5+ {[%clk 00:02:24]} {[%emt
00:00:08]} 29. Kh1 {[%clk 00:11:23]} {[%emt 00:00:01]} h5 {[%clk 00:02:22]}
{[%emt 00:00:12]} 30. Rf7 {[%clk 00:11:15]} {[%emt 00:00:17]} Rbg8 {[%clk
00:02:24]} {[%emt 00:00:08]} 31. e7 {[%clk 00:11:14]} {[%emt 00:00:11]} 1-0

[Event "British Rapidplay Championship 2023"]
[Site "Mercure Bradford, Bankfield Hotel"]
[Date "2023.04.15"]
[Round "6.22"]
[White "Mata, Andrew B"]
[Black "Mikalajunas, Kajus"]
[Result "0-1"]
[TimeControl "15 minutes plus 10 seconds per move"]
[WhiteElo "1659"]
[BlackElo "1778"]

1. d4 {[%clk 00:15:16]} {[%emt 00:00:03]} Nf6 {[%clk 00:15:17]} {[%emt
00:00:03]} 2. c4 {[%clk 00:15:24]} {[%emt 00:00:02]} c5 {[%clk 00:15:25]}
{[%emt 00:00:02]} 3. d5 {[%clk 00:15:30]} {[%emt 00:00:04]} e6 {[%clk
00:15:33]} {[%emt 00:00:02]} 4. dxe6 {[%clk 00:14:51]} {[%emt 00:00:49]} fxe6
{[%clk 00:15:40]} {[%emt 00:00:03]} 5. Nc3 {[%clk 00:14:53]} {[%emt 00:00:08]}
d5 {[%clk 00:15:39]} {[%emt 00:00:10]} 6. cxd5 {[%clk 00:13:52]} {[%emt
00:01:11]} exd5 {[%clk 00:15:47]} {[%emt 00:00:02]} 7. e3 {[%clk 00:13:36]}
{[%emt 00:00:27]} Nc6 {[%clk 00:15:06]} {[%emt 00:00:51]} 8. Nf3 {[%clk
00:13:33]} {[%emt 00:00:12]} d4 {[%clk 00:15:01]} {[%emt 00:00:15]} 9. exd4
{[%clk 00:11:30]} {[%emt 00:02:14]} cxd4 {[%clk 00:15:09]} {[%emt 00:00:02]} 10.
Qe2+ {[%clk 00:11:29]} {[%emt 00:00:10]} Be7 {[%clk 00:15:03]} {[%emt
00:00:16]} 11. Ne4 {[%clk 00:11:20]} {[%emt 00:00:19]} Nxe4 {[%clk 00:14:00]}
{[%emt 00:01:13]} 12. Qxe4 {[%clk 00:11:26]} {[%emt 00:00:04]} O-O {[%clk
00:13:46]} {[%emt 00:00:23]} 13. Bc4+ {[%clk 00:08:38]} {[%emt 00:02:59]} Kh8
{[%clk 00:13:54]} {[%emt 00:00:02]} 14. O-O {[%clk 00:08:40]} {[%emt 00:00:08]}
Bf5 {[%clk 00:13:48]} {[%emt 00:00:16]} 15. Qd5 {[%clk 00:08:34]} {[%emt
00:00:16]} Qxd5 {[%clk 00:13:02]} {[%emt 00:00:57]} 16. Bxd5 {[%clk 00:08:42]}
{[%emt 00:00:02]} Rad8 {[%clk 00:13:10]} {[%emt 00:00:02]} 17. Bb3 {[%clk
00:07:18]} {[%emt 00:01:34]} h6 {[%clk 00:12:26]} {[%emt 00:00:54]} 18. a3
{[%clk 00:06:52]} {[%emt 00:00:36]} Bf6 {[%clk 00:11:10]} {[%emt 00:01:24]} 19.
Bd2 {[%clk 00:04:14]} {[%emt 00:02:48]} Be4 {[%clk 00:09:26]} {[%emt 00:01:54]}
20. Rac1 {[%clk 00:03:25]} {[%emt 00:00:59]} Bxf3 {[%clk 00:08:43]} {[%emt
00:00:53]} 21. gxf3 {[%clk 00:03:34]} {[%emt 00:00:02]} d3 {[%clk 00:08:24]}
{[%emt 00:00:28]} 22. Ba4 {[%clk 00:03:13]} {[%emt 00:00:31]} Bxb2 {[%clk
00:06:54]} {[%emt 00:01:40]} 23. Rb1 {[%clk 00:03:20]} {[%emt 00:00:04]} Bxa3
{[%clk 00:06:58]} {[%emt 00:00:05]} 24. Rxb7 {[%clk 00:02:20]} {[%emt
00:01:10]} Nd4 {[%clk 00:06:14]} {[%emt 00:00:54]} 25. Bc3 {[%clk 00:02:06]}
{[%emt 00:00:24]} Ne2+ {[%clk 00:06:15]} {[%emt 00:00:09]} 0-1

[Event "British Rapidplay Championship 2023"]
[Site "Mercure Bradford, Bankfield Hotel"]
[Date "2023.04.15"]
[Round "6.23"]
[White "Buckley, Colm"]
[Black "Brencher, Paul"]
[Result "1/2-1/2"]
[TimeControl "15 minutes plus 10 seconds per move"]
[WhiteElo "1870"]
[BlackElo "1929"]

1. d4 {[%clk 00:15:17]} {[%emt 00:00:02]} e6 {[%clk 00:15:13]} {[%emt
00:00:08]} 2. c4 {[%clk 00:15:16]} {[%emt 00:00:12]} Nf6 {[%clk 00:15:20]}
{[%emt 00:00:02]} 3. Nf3 {[%clk 00:15:17]} {[%emt 00:00:08]} Bb4+ {[%clk
00:15:26]} {[%emt 00:00:04]} 4. Bd2 {[%clk 00:14:42]} {[%emt 00:00:45]} Qe7
{[%clk 00:15:27]} {[%emt 00:00:10]} 5. a3 {[%clk 00:14:22]} {[%emt 00:00:29]}
Bxd2+ {[%clk 00:15:31]} {[%emt 00:00:06]} 6. Nbxd2 {[%clk 00:14:29]} {[%emt
00:00:04]} d6 {[%clk 00:15:00]} {[%emt 00:00:41]} 7. e3 {[%clk 00:13:46]}
{[%emt 00:00:53]} Nbd7 {[%clk 00:14:31]} {[%emt 00:00:38]} 8. Qc2 {[%clk
00:13:06]} {[%emt 00:00:50]} O-O {[%clk 00:14:11]} {[%emt 00:00:31]} 9. Bd3
{[%clk 00:12:40]} {[%emt 00:00:34]} e5 {[%clk 00:13:18]} {[%emt 00:01:03]} 10.
O-O {[%clk 00:11:49]} {[%emt 00:01:01]} Re8 {[%clk 00:12:44]} {[%emt 00:00:44]}
11. e4 {[%clk 00:10:47]} {[%emt 00:01:12]} Nh5 {[%clk 00:08:44]} {[%emt
00:04:11]} 12. dxe5 {[%clk 00:07:59]} {[%emt 00:02:58]} dxe5 {[%clk 00:08:35]}
{[%emt 00:00:19]} 13. b4 {[%clk 00:07:24]} {[%emt 00:00:44]} a5 {[%clk
00:07:57]} {[%emt 00:00:48]} 14. c5 {[%clk 00:07:15]} {[%emt 00:00:20]} Nf4
{[%clk 00:06:14]} {[%emt 00:01:53]} 15. Bc4 {[%clk 00:06:17]} {[%emt 00:01:08]}
Nf6 {[%clk 00:05:00]} {[%emt 00:01:24]} 16. Ng5 {[%clk 00:04:11]} {[%emt
00:02:16]} Ne6 {[%clk 00:03:50]} {[%emt 00:01:20]} 17. Nxe6 {[%clk 00:04:17]}
{[%emt 00:00:04]} Bxe6 {[%clk 00:03:58]} {[%emt 00:00:02]} 18. f3 {[%clk
00:03:58]} {[%emt 00:00:28]} Red8 {[%clk 00:03:11]} {[%emt 00:00:57]} 19. Nb3
{[%clk 00:03:29]} {[%emt 00:00:39]} a4 {[%clk 00:02:11]} {[%emt 00:01:10]} 20.
Na5 {[%clk 00:03:23]} {[%emt 00:00:16]} Rxa5 {[%clk 00:02:18]} {[%emt
00:00:04]} 21. Bxe6 {[%clk 00:02:44]} {[%emt 00:00:49]} Raa8 {[%clk 00:02:16]}
{[%emt 00:00:12]} 22. Bc4 {[%clk 00:02:10]} {[%emt 00:00:43]} 1/2-1/2

[ePGN "0.1;DGT LiveChess/2.2.5"]